Workbook

Sheet Tilskuddskalkulator
C3: Tilskuddskalkulator 2025
C4: Finn ut hvor mye tilskudd din kommune vil motta fra IMDi i 2025. Bruk denne kalkulatoren til å beregne de ulike tilskuddene dere mottar for flyktninger og innvandrere.
C6: For å bruke kalkulatoren, trykk først på knappen "Aktiver innhold" helt øverst, så vil det komme opp en dialogboks, trykk deretter på "Ja". Dette er for å aktivere Makroer. Gå til de aktuelle tilskuddsordninger for å se hvilke satser som gjelder i år og sett inn antall personer som utløser de ulike satsene i kolonnen som heter "Sett inn antall".
C7: Har du spørsmål om Tilskuddskalkulator? Send e-post til nama@imdi.no
C9: Integreringstilskudd, eldretilskudd og barnehagetilskudd
C10: Ordningen gjelder i all hovedsak flyktninger og deres familiegjenforente som ble bosatt i perioden 2021-2025. Det er forskjellige satser som gjelder avhengig av hvilket år personene ble bosatt for første gang, og hvilken kategori de tilhører.
C11: Les mer om ordningen på imdi.no.
C13: Tilskuddsår | D13: Bosettingsår | E13: Kategori | F13: Sats | G13: Sett inn antall | H13: Tilskuddsbeløp
C14: Integreringstilskudd år 1 | D14: 2025 | E14: Enslige voksne | F14: 250500 | H14: =F14*G14 -> 0
E15: Voksne | F15: 202000 | H15: =F15*G15 -> 0
E16: Enslige mindreårige | F16: 194300 | H16: 0
E17: Barn | F17: 202000 | H17: 0
C18: Integreringstilskudd år 2 | D18: 2024 | E18: Alle flyktninger | F18: 259200 | H18: =F18*G18 -> 0
C19: Integreringstilskudd år 3 | D19: 2023 | E19: Alle flyktninger | F19: 184300 | H19: =F19*G19 -> 0
C20: Integreringstilskudd år 4 | D20: 2022 | E20: Alle flyktninger | F20: 91400 | H20: =F20*G20 -> 0
C21: Integreringstilskudd år 5 | D21: 2021 | E21: Alle flyktninger | F21: 74800 | H21: 0
C22: Barnehagetilskudd | D22: 2025 | E22: Barn 0-5 år | F22: 28900 | H22: 0
C23: Eldretilskudd | D23: 2025 | E23: Voksne over 60 år | F23: 187600 | H23: 0
C24: Totalt | H24: =SUM(H14:H23) -> 0
C28: Særskilt tilskudd for bosetting av enslige mindreårige flyktninger
C29: Enslige mindreårige (EM) er en fellesbetegnelse for alle barn og unge under 18 år som kommer til landet uten foreldre eller andre voksne med foreldreansvar i Norge. Det er forskjellige satser som gjelder avhengig av barnets alder og bosettingstidspunkt. Tilskuddet utbetales til og med året den enslige mindreårige fyller 20 år.
C30: Les mer om ordningen på imdi.no.
C32: Bosettingstidspunkt | D32: Lav sats (fra og med det året personen fyller 17 år) | E32: Sett inn antall | F32: Høy sats (til og med det året personen fyller 16 år) | G32: Sett inn antall | H32: Tilskuddsbeløp
C33: fra 2025 | D33: 667900 | F33: 1059100 | H33: =D33*E33+F33*G33 -> 0
C34: 2025-01-01 | D34: =D33 -> 667900 | F34: =F33 -> 1059100 | H34: =D34*E34+F34*G34 -> 0
C35: 2025-02-01 | D35: =$D$33*11/12 -> 612241.6667 | F35: =$F$33*11/12 -> 970841.6667 | H35: 0
C36: 2025-03-01 | D36: =$D$33*10/12 -> 556583.3333 | F36: =$F$33*10/12 -> 882583.3333 | H36: 0
C37: 2025-04-01 | D37: =$D$33*9/12 -> 500925 | F37: =$F$33*9/12 -> 794325 | H37: 0
C38: 2025-05-01 | D38: =$D$33*8/12 -> 445266.6667 | F38: =$F$33*8/12 -> 706066.6667 | H38: 0
C39: 2025-06-01 | D39: =$D$33*7/12 -> 389608.3333 | F39: =$F$33*7/12 -> 617808.3333 | H39: 0
C40: 2025-07-01 | D40: =$D$33*6/12 -> 333950 | F40: =$F$33*6/12 -> 529550 | H40: 0
C41: 2025-08-01 | D41: =$D$33*5/12 -> 278291.6667 | F41: =$F$33*5/12 -> 441291.6667 | H41: 0
C42: 2025-09-01 | D42: =$D$33*4/12 -> 222633.3333 | F42: =$F$33*4/12 -> 353033.3333 | H42: 0
C43: 2025-10-01 | D43: =$D$33*3/12 -> 166975 | F43: =$F$33*3/12 -> 264775 | H43: 0
C44: 2025-11-01 | D44: =$D$33*2/12 -> 111316.6667 | F44: =$F$33*2/12 -> 176516.6667 | H44: 0
C45: 2025-12-01 | D45: =$D$33*1/12 -> 55658.33333 | F45: =$F$33*1/12 -> 88258.33333 | H45: 0
C46: Totalt | H46: =SUM(H33:H45) -> 0
C50: Tilskudd til opplæring i norsk og samfunnskunnskap for voksne innvandrere
C51: Kommunen mottar dette tilskuddet for voksne innvandrere som bor i kommunen, har rett og plikt til opplæring i norsk og samfunnskunnskap og hvor kommunen har registrert opplæringsvedtak i NIR. Tilskuddet utbetales per person i målgruppen (persontilskudd), som regel over tre år. Kommunene som har 150 personer eller færre i målgruppen, får også et grunntilskudd.
C52: Les mer om ordningen på imdi.no.
C54: Tilskudd | D54: Lav sats | E54: Sett inn antall med lav sats | F54: Høy sats | G54: Sett inn antall med høy sats | H54: Tilskuddsbeløp
C55: Persontilskudd år 1 (2025) | D55: 17500 | F55: 41200 | H55: =D55*E55+F55*G55 -> 0
C56: Persontilskudd år 2 (2024) | D56: 31800 | F56: 82000 | H56: =D56*E56+F56*G56 -> 0
C57: Persontilskudd år 3 (2023) | D57: 19800 | F57: 56500 | H57: =D57*E57+F57*G57 -> 0
J58: -
C59: Tilskudd | D59: Velg antall personer i målgruppe | F59: Lav sats med 1 til 3 personer | G59: Høy sats med 4 til 150 personer | H59: Tilskuddsbeløp | J59: 1-3 personer | K59: 242100
C60: Grunntilskudd for 2025 | D60: - | F60: =K59 -> 242100 | G60: =K60 -> 721700 | H60: =_xlfn.XLOOKUP(D60,J58:J60,K58:K60) -> 0 | J60: 4-150 personer | K60: 721700
C61: Totalt | H61: =H55+H56+H57+H60 -> 0
C62: *I kolonnen ‘tilskudd’ indikerer årstallene i parentes det året som personene som utløser persontilskuddet kom inn i målgruppen.
C65: Tilskudd til opplæring i norsk for voksne personer med kollektiv beskyttelse
C66: Kommunen mottar dette tilskuddet for voksne personer med kollektiv beskyttelse som bor i kommunen, har rett til opplæring i norsk og hvor det er registrert opplæringsvedtak i NIR. Tilskuddet utbetales per person i målgruppen (persontilskudd), og er ettårig. Kommunen kan også motta tilskudd til utvidet norskopplæring for personer med kollektiv beskyttelse inntil 6 måneder, her må det også registreres opplæringsvedtak i NIR. Kommuner som har 150 personer eller færre i målgruppen, får også et grunntilskudd.
C67: Les mer om ordningen på imdi.no.
C69: Tilskudd | D69: Sats | G69: Sett inn antall | H69: Tilskuddsbeløp
C70: Personstilskudd § 37 d år 1 (2025) | D70: 50300 | H70: =D70*G70 -> 0
C71: Utvidet norskopplæring (2025) | D71: 29700 | H71: =D71*G71 -> 0
C72: Totalt | H72: =SUM(H70:H71) -> 0
C73: *I kolonnen ‘tilskudd’ indikerer årstallene i parentes det året som personene som utløser persontilskuddet kom inn i målgruppen.
C76: Tilskudd for bosetting av personer med nedsatt funksjonsevne og/eller atferdsvansker
C77: Tilskuddet skal bidra til å bosette flyktninger med alvorlige, kjente funksjonsnedsettelser og/atferdsvansker raskere. Tislkuddsordningen skal dekke ekstraordinære kommunale utgifter som følger av å bosette flyktninger med alvorlig fysiski og/eller psykisk funksjonsnedsettelse og personer med alvorlige atferds- og/eller rusproblemer. Tilskudd 1: er et engangstilskudd og kan tildeles for enten første eller andre tilskuddsåret, innslagspunkt kr 100 000,-. Tilskudd 2: Tildeles årlig i integreringstilskuddsperioden på 5 år, innslagspunkt kr 200 000,- *For personer som bosettes fra UDIs botilbud særskilt bo- og omsorgsløsning og særskilt pleie- og omsorgsløsning etter 16.juni, er satsem for tilskudd 2 på inntil 2 597 500 kroner.
C78: Les mer om ordningen på imdi.no.
C80: Bosettingstidspunkt | D80: Tilskudd 1 sats | E80: Antall personer med tilskudd 1 | F80: Tilskudd 2 sats | G80: Stipulert beløp for tilskudd 2 | H80: Tilskuddsbeløp T1 + T2
C81: 2025 | D81: 204100 | F81: 1692000 | H81: =D81*E81+G81 -> 0
C82: 2024 | D82: 196400 | F82: 1608000 | H82: =D82*E82+G82 -> 0
C83: 2023 | D83: 196400 | F83: 1520000 | H83: =D83*E83+G83 -> 0
C84: Totalt | H84: =SUM(H81:H83) -> 0
C88: Tilskuddsordning til opplæring i norsk og samfunnskunnskap for asylsøkarar i mottak 2025
C89: Kommuner som tilbyr opplæring til asylsøkere norsk eller samfunnskunnskap i mottak. Tilskuddene utbetales per person som er i målgruppa for ordningene.
C90: Les mer om ordningen på imdi.no.
C92: Kategori | E92: Sats | F92: Sett inn antall | G92: Tilskuddsbeløp
C93: Opplæring i norsk for asysøkere | E93: 17400 | G93: =E93*F93 -> 0
C94: Opplæring for samfunnskunnskap | E94: 2500 | G94: =E94*F94 -> 0
G95: =G93+G94 -> 0
C102: Oppsummeringstabell
C103: Denne tabellen oppsummerer sum av beregnet tilskudd til kommunen i 2024.
C104: Les mer om IMDis tilskuddsordninger på imdi.no.
C106: Tilskuddsordning | F106: Summen av tilskuddsbeløp
C107: Integreringstilskudd | F107: =H24 -> 0
C108: Særskilt tilskudd for bosetting av enslige mindreårige flyktninger | F108: =H46 -> 0
C109: Tilskudd til opplæring i norsk og samfunnskunnskap for voksne innvandrere | F109: =H61 -> 0
C110: Tilskudd til opplæring i norsk for voksne personer med kollektiv beskyttelse og utvidet norskopplæring | F110: =H72 -> 0
C111: Tilskudd for bosetting av personer med nedsatt funksjonsevne og/eller atferdsvansker | F111: =H84 -> 0
C112: Tilskudd til opplæring i norsk og samfunnskunnskap i mottak | F112: =G95 -> 0
C113: Totalt | F113: =F107+F108+F109+F110+F111+F112 -> 0
